[Event "German-ch Women 2024"]
[Site "Ostfildern"]
[Date "2024.08.24"]
[Round "8.5"]
[White "Novikova, Margarita"]
[Black "Mader, Lena"]
[Result "1/2-1/2"]
[ECO "C68"]
[WhiteElo "1991"]
[BlackElo "1876"]
[Annotator "NA RC"]
[PlyCount "28"]
[EventDate "2024.08.16"]
[EventType "tourn"]
[EventCountry "GER"]
[SourceTitle "playchess.com"]
[Source "ChessBase"]
[SourceQuality "1"]
[TimeControl "40/5400+30:1800+30"]

1. e4 {[%emt 0:00:11]} e5 {[%emt 0:00:21]} 2. Nf3 {[%emt 0:02:49]} Nc6 {[%emt 0:05:43]} 3. Bb5 {[%emt 0:02:21]} a6 {[%emt 0:07:29]} 4. Bxc6 {[%emt 0:06:08]} dxc6 {[%emt 0:08:33]} 5. O-O {[%emt 0:04:09]} Bg4 {[%emt 0:06:33]} 6. h3 {[%emt 0:00:43]} h5 {[%emt 0:06:27]} 7. c3 {[%emt 0:05:42]} Qd3 {[%emt 0:07:33]} 8. hxg4 {[%emt 0:02:56]} hxg4 {[%emt 0:01:27]} 9. Nxe5 {[%emt 0:00:44]} Bd6 {[%emt 0:03:41]} 10. Nxd3 {[%emt 0:03:25]} Bh2+ {[%emt 0:01:45]} 11. Kh1 {[%emt 0:01:36]} Bd6+ {[%emt 0:00:10]} 12. Kg1 {[%emt 0:00:08]} Bh2+ {[%emt 0:00:06]} 13. Kh1 {[%emt 0:00:05]} Bd6+ {[%emt 0:00:05]} 14. Kg1 {[%emt 0:00:09]} Bh2+ {[%emt 0:00:08]} 1/2-1/2

[Event "German-ch Women 2024"]
[Site "Ostfildern"]
[Date "2024.08.24"]
[Round "8.6"]
[White "Moutaqi, Sandra"]
[Black "Wilmink, Anna"]
[Result "0-1"]
[ECO "E13"]
[WhiteElo "1961"]
[BlackElo "1905"]
[Annotator "NA RC"]
[PlyCount "108"]
[EventDate "2024.08.16"]
[EventType "tourn"]
[EventCountry "GER"]
[SourceTitle "playchess.com"]
[Source "ChessBase"]
[SourceQuality "1"]
[TimeControl "40/5400+30:1800+30"]

1. d4 {[%emt 0:00:03]} Nf6 {[%emt 0:00:08]} 2. c4 {[%emt 0:00:07]} e6 {[%emt 0:00:04]} 3. Nc3 {[%emt 0:00:08]} b6 {[%emt 0:00:24]} 4. Nf3 {[%emt 0:00:37]} Bb7 {[%emt 0:00:16]} 5. Bg5 {[%emt 0:00:38]} Bb4 {[%emt 0:01:22]} 6. e3 {[%emt 0:02:17]} h6 {[%emt 0:02:11]} 7. Bh4 {[%emt 0:00:09]} O-O {[%emt 0:02:52]} 8. Bd3 {[%emt 0:01:36]} d5 {[%emt 0:02:07]} 9. O-O {[%emt 0:01:36]} Be7 {[%emt 0:02:01]} 10. Rc1 {[%emt 0:02:38]} Nbd7 {[%emt 0:01:03]} 11. cxd5 {[%emt 0:02:13]} exd5 {[%emt 0:00:36]} 12. Bb1 {[%emt 0:04:22]} c5 {[%emt 0:04:00]} 13. Qc2 {[%emt 0:01:51]} Ne4 {[%emt 0:15:26]} 14. Bg3 {[%emt 0:01:24]} Ndf6 {[%emt 0:03:23]} 15. Be5 {[%emt 0:01:35]} Re8 {[%emt 0:04:14]} 16. Rfd1 {[%emt 0:02:09]} c4 {[%emt 0:04:42]} 17. Nb5 {[%emt 0:07:33]} Rf8 {[%emt 0:05:11]} 18. Ne1 {[%emt 0:04:54]} g6 {[%emt 0:03:13]} 19. f3 {[%emt 0:03:55]} Nd6 {[%emt 0:02:13]} 20. Nxd6 {[%emt 0:05:06]} Bxd6 {[%emt 0:01:10]} 21. g4 {[%emt 0:00:41]} Qe7 {[%emt 0:05:13]} 22. Bxd6 {[%emt 0:03:39]} Qxd6 {[%emt 0:00:38]} 23. Ng2 {[%emt 0:01:29]} Kh8 {[%emt 0:04:45]} 24. Qf2 {[%emt 0:01:23]} Rae8 {[%emt 0:03:26]} 25. Qh4 {[%emt 0:03:10]} Kg7 {[%emt 0:00:37]} 26. Rf1 {[%emt 0:03:28]} Bc8 {[%emt 0:04:19]} 27. h3 {[%emt 0:03:48]} Rh8 {[%emt 0:06:30]} 28. Qf2 {[%emt 0:02:55]} h5 {[%emt 0:07:56]} 29. g5 {[%emt 0:03:14]} Nh7 {[%emt 0:00:34]} 30. h4 {[%emt 0:00:32]} Rhf8 {[%emt 0:01:45]} 31. Nf4 {[%emt 0:02:28]} Bb7 {[%emt 0:03:43]} 32. Rfe1 {[%emt 0:02:35]} Re7 {[%emt 0:02:08]} 33. Qh2 {[%emt 0:00:34]} Qd7 {[%emt 0:00:51]} 34. Qc2 {[%emt 0:01:34]} Qd6 {[%emt 0:00:32]} 35. Nxh5+ {[%emt 0:01:00]} Kh8 {[%emt 0:02:27]} 36. Nf4 {[%emt 0:01:53]} f5 {[%emt 0:00:39]} 37. gxf6 {[%emt 0:07:21]} Rxf6 {[%emt 0:00:09]} 38. Nxg6+ {[%emt 0:01:16]} Rxg6+ {[%emt 0:00:22]} 39. Qxg6 {[%emt 0:00:31]} Rg7 {[%emt 0:00:10]} 40. h5 {[%emt 0:01:13]} Rxg6+ {[%emt 0:01:00]} 41. hxg6 {[%emt 0:30:11]} Qg3+ {[%emt 0:34:20]} 42. Kf1 {[%emt 0:05:56]} Qxf3+ {[%emt 0:00:00]} 43. Kg1 {[%emt 0:00:00]} Ng5 {[%emt 0:00:00]} 44. Rf1 {[%emt 0:00:00]} Qg3+ {[%emt 0:00:00]} 45. Kh1 {[%emt 0:00:00]} Nf3 {[%emt 0:00:00]} 46. g7+ {[%emt 0:00:00]} Kg8 {[%emt 0:00:00]} 47. Bh7+ {[%emt 0:00:00]} Kxh7 {[%emt 0:00:00]} 48. g8=Q+ {[%emt 0:18:48]} Kxg8 {[%emt 0:00:00]} 49. Rg1 {[%emt 0:00:00]} Nxg1 {[%emt 0:00:00]} 50. Rxg1 {[%emt 0:00:00]} Qxg1+ {[%emt 0:00:00]} 51. Kxg1 {[%emt 0:00:00]} Kf7 {[%emt 0:00:00]} 52. Kf2 {[%emt 0:00:00]} Kf6 {[%emt 0:00:00]} 53. Kg3 {[%emt 0:00:00]} Kf5 {[%emt 0:00:00]} 54. Kf3 {[%emt 0:00:00]} b5 {[%emt 0:00:00]} 0-1

[Event "German-ch Women 2024"]
[Site "Ostfildern"]
[Date "2024.08.24"]
[Round "8.7"]
[White "Foltin, Alica"]
[Black "Moeller, Hannah"]
[Result "0-1"]
[ECO "E87"]
[WhiteElo "1722"]
[BlackElo "1845"]
[Annotator "NA RC"]
[PlyCount "94"]
[EventDate "2024.08.16"]
[EventType "tourn"]
[EventCountry "GER"]
[SourceTitle "playchess.com"]
[Source "ChessBase"]
[SourceQuality "1"]
[TimeControl "40/5400+30:1800+30"]

1. d4 {[%emt 0:00:11]} Nf6 {[%emt 0:00:05]} 2. c4 {[%emt 0:00:03]} g6 {[%emt 0:00:02]} 3. Nc3 {[%emt 0:00:03]} Bg7 {[%emt 0:00:03]} 4. e4 {[%emt 0:00:04]} d6 {[%emt 0:00:02]} 5. h3 {[%emt 0:00:04]} O-O {[%emt 0:00:19]} 6. Be3 {[%emt 0:00:04]} e5 {[%emt 0:00:28]} 7. d5 {[%emt 0:00:04]} a5 {[%emt 0:01:58]} 8. g4 {[%emt 0:00:46]} h5 {[%emt 0:02:51]} 9. f3 {[%emt 0:01:31]} Na6 {[%emt 0:02:38]} 10. Nge2 {[%emt 0:00:22]} Nc5 {[%emt 0:00:35]} 11. Qd2 {[%emt 0:03:56]} Nh7 {[%emt 0:05:57]} 12. Nc1 {[%emt 0:10:44]} Qh4+ {[%emt 0:28:20]} 13. Bf2 {[%emt 0:01:17]} Qg5 {[%emt 0:00:47]} 14. Qxg5 {[%emt 0:09:21]} Nxg5 {[%emt 0:00:24]} 15. Be2 {[%emt 0:00:13]} hxg4 {[%emt 0:02:12]} 16. hxg4 {[%emt 0:04:15]} f5 {[%emt 0:06:22]} 17. gxf5 {[%emt 0:00:53]} gxf5 {[%emt 0:00:07]} 18. Rh5 {[%emt 0:02:46]} Nh7 {[%emt 0:01:19]} 19. Bxc5 {[%emt 0:06:37]} dxc5 {[%emt 0:00:06]} 20. Nd3 {[%emt 0:00:49]} b6 {[%emt 0:02:40]} 21. O-O-O {[%emt 0:01:10]} Bd7 {[%emt 0:08:32]} 22. Rg1 {[%emt 0:07:05]} Rae8 {[%emt 0:01:14]} 23. f4 {[%emt 0:05:12]} exf4 {[%emt 0:08:35]} 24. e5 {[%emt 0:00:16]} Re7 {[%emt 0:00:09]} 25. e6 {[%emt 0:16:20]} Be8 {[%emt 0:00:07]} 26. Rh4 {[%emt 0:00:53]} Kh8 {[%emt 0:11:35]} 27. Nxf4 {[%emt 0:03:04]} Bf6 {[%emt 0:01:27]} 28. Rh6 {[%emt 0:00:57]} Bd4 {[%emt 0:00:51]} 29. Ng6+ {[%emt 0:02:48]} Bxg6 {[%emt 0:00:25]} 30. Rgxg6 {[%emt 0:00:18]} Be3+ {[%emt 0:00:07]} 31. Kc2 {[%emt 0:01:08]} Bxh6 {[%emt 0:00:06]} 32. Rxh6 {[%emt 0:00:15]} Kg8 {[%emt 0:05:27]} 33. Nb5 {[%emt 0:05:33]} Nf6 {[%emt 0:05:11]} 34. Na7 {[%emt 0:06:45]} Rh7 {[%emt 0:03:44]} 35. Rxh7 {[%emt 0:02:28]} Kxh7 {[%emt 0:00:12]} 36. Kd3 {[%emt 0:02:17]} Kg6 {[%emt 0:00:27]} 37. Ke3 {[%emt 0:01:55]} Kg5 {[%emt 0:01:15]} 38. Nc6 {[%emt 0:01:24]} Ng8 {[%emt 0:01:10]} 39. Na7 {[%emt 0:03:24]} Ne7 {[%emt 0:00:18]} 40. Nb5 {[%emt 0:00:10]} Rc8 {[%emt 0:01:16]} 41. Na7 {[%emt 0:32:04]} Rd8 {[%emt 0:30:27]} 42. Nb5 {[%emt 0:00:55]} c6 {[%emt 0:00:00]} 43. dxc6 {[%emt 0:00:00]} Nxc6 {[%emt 0:00:00]} 44. Bf3 {[%emt 0:00:00]} Ne7 {[%emt 0:00:00]} 45. Nc3 {[%emt 0:00:00]} Kf6 {[%emt 0:00:00]} 46. Bd5 {[%emt 0:00:00]} Ke5 {[%emt 0:00:00]} 47. a4 {[%emt 0:00:00]} Rh8 {[%emt 0:00:00]} 0-1

[Event "German-ch Women 2024"]
[Site "Ostfildern"]
[Date "2024.08.24"]
[Round "8.8"]
[White "Wartenberg, Alissa"]
[Black "Koeberl, Christiane"]
[Result "1-0"]
[ECO "B07"]
[WhiteElo "1858"]
[BlackElo "1745"]
[Annotator "NA RC"]
[PlyCount "109"]
[EventDate "2024.08.16"]
[EventType "tourn"]
[EventCountry "GER"]
[SourceTitle "playchess.com"]
[Source "ChessBase"]
[SourceQuality "1"]
[TimeControl "40/5400+30:1800+30"]

1. e4 {[%emt 0:00:02]} d6 {[%emt 0:00:25]} 2. d4 {[%emt 0:00:14]} Nf6 {[%emt 0:00:06]} 3. Nc3 {[%emt 0:00:05]} Nbd7 {[%emt 0:00:05]} 4. Nf3 {[%emt 0:00:44]} c6 {[%emt 0:00:41]} 5. Bf4 {[%emt 0:10:55]} Nh5 {[%emt 0:03:00]} 6. Be3 {[%emt 0:00:17]} g6 {[%emt 0:00:19]} 7. Bc4 {[%emt 0:05:03]} e6 {[%emt 0:04:47]} 8. O-O {[%emt 0:13:35]} Bg7 {[%emt 0:04:20]} 9. Qd2 {[%emt 0:01:22]} h6 {[%emt 0:00:50]} 10. Rfe1 {[%emt 0:03:43]} e5 {[%emt 0:03:55]} 11. Rad1 {[%emt 0:08:14]} g5 {[%emt 0:04:53]} 12. Bxg5 {[%emt 0:16:55]} hxg5 {[%emt 0:02:47]} 13. Nxg5 {[%emt 0:00:13]} O-O {[%emt 0:12:13]} 14. Bxf7+ {[%emt 0:01:53]} Rxf7 {[%emt 0:00:47]} 15. Nxf7 {[%emt 0:00:05]} Kxf7 {[%emt 0:00:20]} 16. dxe5 {[%emt 0:04:17]} Bxe5 {[%emt 0:03:47]} 17. Ne2 {[%emt 0:06:23]} Qh4 {[%emt 0:10:15]} 18. g3 {[%emt 0:04:33]} Qf6 {[%emt 0:07:54]} 19. c3 {[%emt 0:04:20]} Nc5 {[%emt 0:00:17]} 20. f4 {[%emt 0:01:31]} Nxe4 {[%emt 0:03:07]} 21. Qe3 {[%emt 0:00:18]} Bxc3 {[%emt 0:02:42]} 22. Nxc3 {[%emt 0:01:36]} Nxc3 {[%emt 0:00:21]} 23. Qe8+ {[%emt 0:00:40]} Kg7 {[%emt 0:01:26]} 24. bxc3 {[%emt 0:00:46]} Kh6 {[%emt 0:01:57]} 25. Qe7 {[%emt 0:04:27]} d5 {[%emt 0:01:51]} 26. Qxf6+ {[%emt 0:04:25]} Nxf6 {[%emt 0:00:01]} 27. Re7 {[%emt 0:01:05]} Bg4 {[%emt 0:01:35]} 28. Rde1 {[%emt 0:00:28]} Rb8 {[%emt 0:03:23]} 29. R1e5 {[%emt 0:03:07]} a6 {[%emt 0:03:07]} 30. Rg5 {[%emt 0:01:06]} Bh5 {[%emt 0:07:33]} 31. Re6 {[%emt 0:00:43]} Rf8 {[%emt 0:00:12]} 32. g4 {[%emt 0:01:46]} Bg6 {[%emt 0:00:17]} 33. h4 {[%emt 0:00:51]} Kh7 {[%emt 0:02:22]} 34. Re7+ {[%emt 0:00:46]} Rf7 {[%emt 0:00:45]} 35. Rxf7+ {[%emt 0:00:48]} Bxf7 {[%emt 0:00:03]} 36. Rf5 {[%emt 0:00:26]} Kg7 {[%emt 0:00:09]} 37. h5 {[%emt 0:00:20]} Ne4 {[%emt 0:00:59]} 38. h6+ {[%emt 0:00:20]} Kxh6 {[%emt 0:02:29]} 39. Rxf7 {[%emt 0:00:04]} Nxc3 {[%emt 0:00:32]} 40. Kf1 {[%emt 0:01:26]} Nxa2 {[%emt 0:02:13]} 41. Rxb7 {[%emt 0:30:10]} a5 {[%emt 0:30:51]} 42. Ra7 {[%emt 0:00:23]} Nb4 {[%emt 0:02:59]} 43. Ke2 {[%emt 0:00:00]} Kg6 {[%emt 0:00:00]} 44. Rxa5 {[%emt 0:00:00]} Kf6 {[%emt 0:00:00]} 45. Ra4 {[%emt 0:00:00]} c5 {[%emt 0:00:00]} 46. Ra5 {[%emt 0:00:00]} c4 {[%emt 0:00:00]} 47. Rb5 {[%emt 0:00:00]} Nd3 {[%emt 0:00:00]} 48. Ke3 {[%emt 0:00:00]} Ke6 {[%emt 0:00:00]} 49. Rb6+ {[%emt 0:00:00]} Kf7 {[%emt 0:00:00]} 50. Rd6 {[%emt 0:00:00]} Nb4 {[%emt 0:00:00]} 51. Kd4 {[%emt 0:00:00]} Ke7 {[%emt 0:00:00]} 52. Rb6 {[%emt 0:00:00]} Nd3 {[%emt 0:00:00]} 53. f5 {[%emt 0:00:00]} Nf2 {[%emt 0:00:00]} 54. g5 {[%emt 0:00:00]} Ne4 {[%emt 0:00:00]} 55. g6 {[%emt 0:00:00]} 1-0

[Event "German-ch Women 2024"]
[Site "Ostfildern"]
[Date "2024.08.24"]
[Round "8.9"]
[White "Bursan, Ana-Maria"]
[Black "Sokyrko, Sofiia"]
[Result "1-0"]
[ECO "C25"]
[WhiteElo "1719"]
[BlackElo "1585"]
[Annotator "NA RC"]
[PlyCount "49"]
[EventDate "2024.08.16"]
[EventType "tourn"]
[EventCountry "GER"]
[SourceTitle "playchess.com"]
[Source "ChessBase"]
[SourceQuality "1"]
[TimeControl "40/5400+30:1800+30"]

1. e4 {[%emt 0:00:04]} e5 {[%emt 0:00:25]} 2. Nc3 {[%emt 0:00:09]} Nc6 {[%emt 0:00:30]} 3. f4 {[%emt 0:00:29]} exf4 {[%emt 0:00:26]} 4. Nf3 {[%emt 0:00:39]} Bc5 {[%emt 0:04:36]} 5. d4 {[%emt 0:03:58]} Nxd4 {[%emt 0:02:24]} 6. Bxf4 {[%emt 0:08:40]} Nc6 {[%emt 0:15:36]} 7. Bc4 {[%emt 0:05:34]} h6 {[%emt 0:04:05]} 8. Bxf7+ {[%emt 0:06:48]} Kf8 {[%emt 0:02:33]} 9. Bb3 {[%emt 0:05:22]} Nf6 {[%emt 0:01:35]} 10. Rf1 {[%emt 0:07:28]} Qe7 {[%emt 0:04:40]} 11. Qe2 {[%emt 0:04:38]} d6 {[%emt 0:01:02]} 12. O-O-O {[%emt 0:03:13]} Bg4 {[%emt 0:00:39]} 13. Nd5 {[%emt 0:05:40]} Nxd5 {[%emt 0:01:31]} 14. Bxd5 {[%emt 0:01:00]} Nd4 {[%emt 0:00:20]} 15. Qd3 {[%emt 0:06:30]} Ne6 {[%emt 0:02:19]} 16. Bg3 {[%emt 0:03:34]} c6 {[%emt 0:00:28]} 17. Ne5+ {[%emt 0:06:16]} Ke8 {[%emt 0:00:14]} 18. Nxg4 {[%emt 0:02:15]} Qg5+ {[%emt 0:01:29]} 19. Kb1 {[%emt 0:02:47]} Qxg4 {[%emt 0:00:12]} 20. Bb3 {[%emt 0:05:28]} Rd8 {[%emt 0:00:21]} 21. h3 {[%emt 0:00:56]} Qg5 {[%emt 0:01:34]} 22. Bxe6 {[%emt 0:01:21]} Qe7 {[%emt 0:03:21]} 23. Bf5 {[%emt 0:01:37]} a5 {[%emt 0:01:33]} 24. Bg6+ {[%emt 0:00:40]} Kd7 {[%emt 0:00:10]} 25. Rf7 {[%emt 0:00:42]} 1-0

[Event "German-ch Women 2024"]
[Site "Ostfildern"]
[Date "2024.08.24"]
[Round "8.10"]
[White "Albayrak, Aylin"]
[Black "Noll, Sonja"]
[Result "1-0"]
[ECO "A41"]
[WhiteElo "1741"]
[BlackElo "1810"]
[Annotator "NA RC"]
[PlyCount "57"]
[EventDate "2024.08.16"]
[EventType "tourn"]
[EventCountry "GER"]
[SourceTitle "playchess.com"]
[Source "ChessBase"]
[SourceQuality "1"]
[TimeControl "40/5400+30:1800+30"]

1. d4 {[%emt 0:00:01]} d6 {[%emt 0:00:49]} 2. c4 {[%emt 0:00:11]} e5 {[%emt 0:00:32]} 3. d5 {[%emt 0:00:13]} f5 {[%emt 0:00:30]} 4. Nc3 {[%emt 0:00:30]} a5 {[%emt 0:00:41]} 5. Nf3 {[%emt 0:02:45]} Nf6 {[%emt 0:02:41]} 6. g3 {[%emt 0:00:56]} Nbd7 {[%emt 0:00:57]} 7. Bh3 {[%emt 0:01:09]} e4 {[%emt 0:01:11]} 8. Nd4 {[%emt 0:00:48]} Ne5 {[%emt 0:01:11]} 9. b3 {[%emt 0:01:18]} g6 {[%emt 0:01:38]} 10. O-O {[%emt 0:01:37]} Bg7 {[%emt 0:02:19]} 11. Rb1 {[%emt 0:01:38]} Bd7 {[%emt 0:01:27]} 12. f3 {[%emt 0:00:35]} exf3 {[%emt 0:04:07]} 13. Nxf3 {[%emt 0:04:05]} Nfg4 {[%emt 0:04:51]} 14. Nd4 {[%emt 0:02:19]} c5 {[%emt 0:02:32]} 15. Ne6 {[%emt 0:05:15]} Bxe6 {[%emt 0:01:53]} 16. dxe6 {[%emt 0:00:13]} Nxc4 {[%emt 0:01:59]} 17. bxc4 {[%emt 0:02:37]} Bxc3 {[%emt 0:00:14]} 18. Qa4+ {[%emt 0:00:37]} Kf8 {[%emt 0:01:14]} 19. Bxg4 {[%emt 0:00:31]} Qe7 {[%emt 0:00:45]} 20. Qd7 {[%emt 0:06:54]} Rb8 {[%emt 0:01:55]} 21. e4 {[%emt 0:01:56]} Qxd7 {[%emt 0:01:43]} 22. exd7 {[%emt 0:00:07]} Bd4+ {[%emt 0:00:51]} 23. Kg2 {[%emt 0:00:16]} h5 {[%emt 0:00:40]} 24. Bg5 {[%emt 0:01:37]} Kg7 {[%emt 0:00:36]} 25. Bf3 {[%emt 0:01:17]} Bf6 {[%emt 0:01:02]} 26. Bxf6+ {[%emt 0:00:44]} Kxf6 {[%emt 0:00:09]} 27. exf5 {[%emt 0:00:14]} Ke7 {[%emt 0:01:15]} 28. fxg6 {[%emt 0:00:14]} Kxd7 {[%emt 0:00:08]} 29. Bd5 {[%emt 0:02:42]} 1-0

[Event "German-ch Women 2024"]
[Site "Ostfildern"]
[Date "2024.08.25"]
[Round "9.1"]
[White "Wilmink, Anna"]
[Black "Kostak, Tetyana"]
[Result "1/2-1/2"]
[ECO "C41"]
[WhiteElo "1905"]
[BlackElo "2094"]
[Annotator "RC"]
[PlyCount "60"]
[EventDate "2024.08.16"]
[EventType "tourn"]
[EventCountry "GER"]
[SourceTitle "playchess.com"]
[Source "ChessBase"]
[SourceQuality "1"]
[TimeControl "40/5400+30:1800+30"]

1. e4 {[%emt 0:00:02]} d6 {[%emt 0:00:25]} 2. d4 {[%emt 0:01:18]} Nf6 {[%emt 0:00:08]} 3. Nc3 {[%emt 0:01:13]} e5 {[%emt 0:00:20]} 4. Nf3 {[%emt 0:03:01]} Nbd7 {[%emt 0:00:23]} 5. Bc4 {[%emt 0:03:43]} Be7 {[%emt 0:00:14]} 6. O-O {[%emt 0:04:23]} O-O {[%emt 0:00:10]} 7. Qe2 {[%emt 0:04:59]} c6 {[%emt 0:02:10]} 8. a4 {[%emt 0:12:39]} a5 {[%emt 0:01:45]} 9. Ba2 {[%emt 0:11:15]} h6 {[%emt 0:00:20]} 10. h3 {[%emt 0:06:36]} Nh7 {[%emt 0:04:58]} 11. Be3 {[%emt 0:07:47]} Ng5 {[%emt 0:00:21]} 12. Rad1 {[%emt 0:04:01]} Nxf3+ {[%emt 0:00:31]} 13. Qxf3 {[%emt 0:00:21]} Bg5 {[%emt 0:04:38]} 14. Qg3 {[%emt 0:02:31]} Bxe3 {[%emt 0:00:41]} 15. fxe3 {[%emt 0:00:33]} Qe7 {[%emt 0:03:05]} 16. Rf3 {[%emt 0:04:55]} Kh7 {[%emt 0:07:57]} 17. Rdf1 {[%emt 0:03:01]} f6 {[%emt 0:00:17]} 18. h4 {[%emt 0:04:18]} Nb6 {[%emt 0:02:15]} 19. h5 {[%emt 0:03:03]} Be6 {[%emt 0:00:09]} 20. Qg6+ {[%emt 0:01:55]} Kh8 {[%emt 0:00:11]} 21. Bxe6 {[%emt 0:01:36]} Qxe6 {[%emt 0:00:08]} 22. b3 {[%emt 0:02:03]} Nd7 {[%emt 0:04:33]} 23. Ne2 {[%emt 0:01:01]} d5 {[%emt 0:07:20]} 24. Ng3 {[%emt 0:02:43]} Qf7 {[%emt 0:00:17]} 25. Qf5 {[%emt 0:02:14]} Rae8 {[%emt 0:00:52]} 26. exd5 {[%emt 0:06:04]} cxd5 {[%emt 0:00:14]} 27. R3f2 {[%emt 0:00:41]} Qe6 {[%emt 0:01:05]} 28. Qg6 {[%emt 0:01:39]} Qf7 {[%emt 0:00:14]} 29. Qf5 {[%emt 0:00:28]} Qe6 {[%emt 0:00:08]} 30. Qg6 {[%emt 0:00:10]} Qf7 {[%emt 0:00:08]} 1/2-1/2

[Event "German-ch Women 2024"]
[Site "Ostfildern"]
[Date "2024.08.25"]
[Round "9.2"]
[White "Miljkovic, Jovana"]
[Black "Bluebaum, Johanna"]
[Result "1/2-1/2"]
[ECO "E01"]
[WhiteElo "2021"]
[BlackElo "1994"]
[Annotator "NA RC"]
[PlyCount "71"]
[EventDate "2024.08.16"]
[EventType "tourn"]
[EventCountry "GER"]
[SourceTitle "playchess.com"]
[Source "ChessBase"]
[SourceQuality "1"]
[TimeControl "40/5400+30:1800+30"]

1. Nf3 {[%emt 0:00:02]} d5 {[%emt 0:01:23]} 2. d4 {[%emt 0:00:05]} e6 {[%emt 0:00:21]} 3. c4 {[%emt 0:00:09]} Nf6 {[%emt 0:00:44]} 4. g3 {[%emt 0:00:06]} Bd6 {[%emt 0:01:16]} 5. Bg2 {[%emt 0:01:06]} Nc6 {[%emt 0:00:22]} 6. Nbd2 {[%emt 0:01:34] E01: Catalan: Early deviations.} O-O {[%emt 0:01:46]} 7. O-O {[%emt 0:01:02]} a5 {[%emt 0:00:41]} 8. Re1 {[%emt 0:01:17]} Ne4 {[%emt 0:17:07]} 9. Nxe4 {[%emt 0:06:17]} dxe4 {[%emt 0:00:04]} 10. Ng5 {[%emt 0:00:48]} Bb4 {[%emt 0:07:10]} 11. Rf1 {[%emt 0:10:19]} Qxd4 {[%emt 0:08:07]} 12. Bxe4 {[%emt 0:02:36]} h6 {[%emt 0:07:18]} 13. Bxc6 {[%emt 0:03:23]} Qxd1 {[%emt 0:02:04]} 14. Rxd1 {[%emt 0:00:07]} bxc6 {[%emt 0:00:07]} 15. Nf3 {[%emt 0:01:08]} f6 {[%emt 0:06:51]} 16. Nd4 {[%emt 0:06:11]} e5 {[%emt 0:04:34]} 17. Nxc6 {[%emt 0:04:07]} Bd6 {[%emt 0:17:37]} 18. Bd2 {[%emt 0:02:22]} Bg4 {[%emt 0:03:41]} 19. Kf1 {[%emt 0:03:37]} a4 {[%emt 0:00:54]} 20. b4 {[%emt 0:06:17]} Bd7 {[%emt 0:01:58]} 21. Na5 {[%emt 0:01:05]} Rfb8 {[%emt 0:01:34]} 22. c5 {[%emt 0:01:26]} Bf8 $14 {[%emt 0:00:34]} 23. Bc3 {[%emt 0:07:17]} Bb5 {[%emt 0:02:15]} 24. Rd2 {[%emt 0:01:43]} Rd8 {[%emt 0:00:42]} 25. Rad1 {[%emt 0:00:35]} Rxd2 {[%emt 0:01:58]} 26. Rxd2 {[%emt 0:00:10]} Be7 {[%emt 0:00:03]} 27. a3 {[%emt 0:01:42]} Rd8 {[%emt 0:01:15]} 28. Ke1 {[%emt 0:01:48]} Kf7 {[%emt 0:00:09]} 29. Rc2 {[%emt 0:07:46]} Ke6 {[%emt 0:01:30]} 30. Bb2 {[%emt 0:00:42]} Kd5 {[%emt 0:01:05]} 31. Rd2+ {[%emt 0:04:37]} Ke6 {[%emt 0:00:52]} 32. Rc2 {[%emt 0:00:18]} Kd5 {[%emt 0:01:41]} 33. Rd2+ {[%emt 0:01:04]} Ke6 {[%emt 0:00:33]} 34. Rc2 {[%emt 0:00:15]} Kd5 {[%emt 0:00:04]} 35. Rd2+ {[%emt 0:00:09]} Ke6 {[%emt 0:00:03]} 36. Rc2 {[%emt 0:00:03]} 1/2-1/2

[Event "German-ch Women 2024"]
[Site "Ostfildern"]
[Date "2024.08.25"]
[Round "9.3"]
[White "Moeller, Hannah"]
[Black "Braun, Kristin"]
[Result "0-1"]
[ECO "D34"]
[WhiteElo "1845"]
[BlackElo "2001"]
[Annotator "NA RC"]
[PlyCount "66"]
[EventDate "2024.08.16"]
[EventType "tourn"]
[EventCountry "GER"]
[SourceTitle "playchess.com"]
[Source "ChessBase"]
[SourceQuality "1"]
[TimeControl "40/5400+30:1800+30"]

1. Nf3 {[%emt 0:00:01]} c5 {[%emt 0:00:09]} 2. g3 {[%emt 0:00:04]} Nc6 {[%emt 0:00:08]} 3. c4 {[%emt 0:00:14]} Nf6 {[%emt 0:00:29]} 4. Bg2 {[%emt 0:00:08]} e6 {[%emt 0:01:20]} 5. O-O {[%emt 0:03:07]} Be7 {[%emt 0:00:21]} 6. Nc3 {[%emt 0:00:23]} d5 {[%emt 0:00:36]} 7. d4 {[%emt 0:01:43]} O-O {[%emt 0:11:37]} 8. cxd5 {[%emt 0:03:46]} exd5 {[%emt 0:01:42]} 9. dxc5 {[%emt 0:00:47]} Bxc5 {[%emt 0:00:22]} 10. a3 {[%emt 0:09:08]} a6 {[%emt 0:01:28]} 11. Bf4 {[%emt 0:02:14]} Be6 {[%emt 0:02:33]} 12. Rc1 {[%emt 0:02:43]} Ba7 {[%emt 0:01:08]} 13. Ne5 {[%emt 0:12:23]} Rc8 {[%emt 0:04:27]} 14. Qd2 {[%emt 0:13:30]} ({White should play} 14. e3 $11) 14... Re8 {[%emt 0:04:23]} 15. Nxc6 {[%emt 0:12:01]} bxc6 $11 {[%emt 0:00:34]} 16. Qd3 {[%emt 0:03:20]} Qb6 {[%emt 0:06:24]} 17. Na4 {[%emt 0:02:41]} Qa5 {[%emt 0:04:20]} 18. Nc3 {[%emt 0:05:32]} Bg4 {[%emt 0:06:01]} 19. Bf3 {[%emt 0:03:18]} Bxf3 {[%emt 0:11:00]} 20. Qxf3 {[%emt 0:00:08]} Qb6 {[%emt 0:00:49]} 21. b4 {[%emt 0:04:51]} a5 {[%emt 0:01:29]} 22. Rb1 {[%emt 0:03:32]} axb4 {[%emt 0:03:50]} 23. axb4 {[%emt 0:00:11]} d4 {[%emt 0:03:39]} 24. Na2 {[%emt 0:02:29]} Nd5 {[%emt 0:00:40]} 25. Bd6 {[%emt 0:01:51]} Qb5 {[%emt 0:02:43]} 26. Qd3 {[%emt 0:06:52]} Rxe2 {[%emt 0:02:04]} 27. Qxb5 {[%emt 0:02:23]} cxb5 {[%emt 0:00:01]} 28. Nc1 {[%emt 0:00:18]} Rec2 {[%emt 0:04:41]} 29. Nd3 {[%emt 0:01:33]} Nc3 {[%emt 0:01:25]} 30. Ra1 {[%emt 0:00:29]} Bb6 {[%emt 0:03:03]} 31. Ra6 {[%emt 0:02:02]} Bd8 {[%emt 0:00:09]} 32. Ra7 {[%emt 0:01:26]} Bf6 {[%emt 0:01:00]} 33. Rd1 {[%emt 0:00:49]} Nxd1 {[%emt 0:22:25]} 0-1